lending/lending_fUSD_20240710
["ID","MTS","AMOUNT","RATE_DAILY","PERIOD"]
[331677002,1720626638836,-500.0,0.00013847,2]
[331677004,1720626638846,-500.0,0.00013856,2]
[331677005,1720626638856,-704.15867,0.0001386,2]
[331677007,1720626638866,-119461.67868869,0.0001388,2]
[331677009,1720626638876,-335.61916994,0.00013899,2]
[331677010,1720626638885,-4422.6263,0.000139,2]
[331677012,1720626638896,-7500.0,0.000139,2]
[331677014,1720626638908,-875.973,0.00013948,2]
[331677016,1720626638917,-1820.559,0.00013948,2]
[331677018,1720626638927,-837.88,0.00013948,2]
[331677020,1720626638937,-2377.0,0.00013948,2]
[331677022,1720626638948,-2823.517,0.00013948,2]
[331677024,1720626638958,-38275.0,0.00013948,2]
[331677026,1720626638968,-151.132,0.00013948,2]
[331677028,1720626638979,-152.0,0.00013948,2]
[331677030,1720626638989,-150.0,0.00013948,2]
[331677032,1720626638999,-296.644,0.00013948,2]
[331677034,1720626639010,-196.277,0.00013948,2]
[331677036,1720626639019,-279.177,0.00013948,2]
[331677038,1720626639029,-264.181,0.00013948,2]
[331677040,1720626639039,-1308.925575,0.00013973,2]
[331677042,1720626639049,-192.80417238,0.0001399,2]
[331677044,1720626639059,-500.0,0.00013997,2]
[331677046,1720626639069,-754.59,0.00013997,2]
[331677048,1720626639079,-500.0,0.00013998,2]
[331677050,1720626639089,-1229.8311712,0.00013998,2]
[331677052,1720626639099,-535.11247455,0.00013998,2]
[331677054,1720626639109,-500.0,0.00013998,2]
[331677056,1720626639118,-500.0,0.00013998,2]
[331677057,1720626639128,-500.0,0.00013998,2]
[331677059,1720626639138,-500.0,0.00013998,2]
[331677061,1720626639148,-500.0,0.00013998,2]
[331677063,1720626639159,-500.0,0.00013998,2]
[331677065,1720626639169,-599.99736531,0.00013998,2]
[331677067,1720626639179,-500.0,0.00013998,2]
[331677069,1720626639189,-500.0,0.00013998,2]
[331677071,1720626639199,-500.0,0.00013998,2]
[331677073,1720626639209,-500.0,0.00013998,2]
[331677075,1720626639219,-574.46,0.00013998,2]
[331677077,1720626639230,-535.61,0.00013998,2]
[331677079,1720626639240,-351.11645338,0.00013998,2]
[331677081,1720626639252,-10572.13,0.00013998,2]
[331677083,1720626639261,-500.0,0.00013998,2]
[331677085,1720626639271,-740.85032093,0.00013999,2]
[331677087,1720626639281,-55443.13141703,0.00013999,2]
[331677090,1720626639293,-569.89984797,0.00013999,2]
[331677152,1720626640493,-500.0,0.00013997,2]
[331677153,1720626640503,-4645.9968606,0.00013999,2]
[331677154,1720626640757,-961.27203814,0.00013999,2]
[331677155,1720626640864,-6107.84038738,0.00013999,2]
[331677156,1720626640876,-14453.14132,0.00013999,2]
[331677157,1720626640888,-425.32429956,0.00013999,2]
[331677158,1720626640901,-1345.30596984,0.00013999,2]
[331677239,1720626644106,-2180.37715403,0.00013999,2]
[331677240,1720626644118,-5046.31951689,0.00013999,2]
[331677241,1720626644140,-1152.31990522,0.00013999,2]
[331677242,1720626644153,-964.95971265,0.00013999,2]
[331677247,1720626646462,-856.45024414,0.00013999,2]
[331677248,1720626646516,-2475.51637979,0.00013999,2]
[331677249,1720626646529,-130249.2260044,0.00013999,2]
[331677250,1720626646540,-1405.01,0.00013999,2]
[331677251,1720626646550,-500.0,0.00013999,2]
[331677252,1720626646560,-500.0,0.00013999,2]
[331677253,1720626646570,-500.0,0.00013999,2]
[331677254,1720626646579,-500.0,0.00013999,2]
[331677255,1720626646589,-500.0,0.00013999,2]
[331677256,1720626646598,-500.0,0.00013999,2]
[331677257,1720626646607,-740.85032093,0.00013999,2]
[331677258,1720626646616,-628.0,0.00014,2]
[331677259,1720626646625,-51847.4530627,0.00014,2]
[331677260,1720626646643,-500.0,0.00013997,2]
[331677261,1720626646652,-27293.48092784,0.00014,2]
[331677262,1720626646664,-1981.0,0.00014,2]
[331677263,1720626646674,-281.00881241,0.00014,2]
[331677264,1720626646685,-2990.50036596,0.00014,2]
[331677265,1720626646699,-1455.80283522,0.00014,2]
[331677266,1720626646711,-11543.66626457,0.00014,2]
[331677267,1720626646742,-500.0,0.00014,2]
[331677268,1720626646798,-2349.45172363,0.00014,2]
[331677271,1720626824687,605.64,0.00010891,2]
[331677281,1720627094745,155.0,0.00011199,2]
[331677283,1720627142155,176.07163184,0.00011199,2]
[331677286,1720627233678,150.0,0.00020127,120]
[331677289,1720627290827,150.0,0.00019757,120]
[331677292,1720627376746,575.35,0.00010755,2]
[331677293,1720627396365,500.0,0.00011199,2]
[331677294,1720627396712,680.0,0.00011199,2]
[331677295,1720627410794,150.0,0.00019314,120]
[331677297,1720627470864,150.0,0.00025943,120]
[331677299,1720627590943,150.0,0.0002618,120]
[331677301,1720627607253,155.0,0.00011199,2]
[331677302,1720627651452,150.0,0.00017163,120]
[331677304,1720627771150,150.0,0.00019381,120]
[331677317,1720627831512,-158.19,0.00012646,2]
[331677319,1720627831522,-250.0,0.00012653,2]
[331677321,1720627831531,-1000.0,0.00012672,2]
[331677322,1720627831540,-290.84,0.00012678,2]
[331677323,1720627831550,-198.09078395,0.0001299,2]
[331677324,1720627831560,-117.92956106,0.00013019,2]
[331677325,1720627831597,150.0,0.00022651,120]
[331677326,1720627831617,-364.67036088,0.00013019,2]
[331677327,1720627831629,-92.75007806,0.00013019,2]
[331677328,1720627831639,-200.0,0.000131,4]
[331677329,1720627831649,-4000.45358187,0.00013128,2]
[331677330,1720627831659,-238.42911042,0.000132,4]
[331677331,1720627831672,-261.57088958,0.000132,4]
[331677332,1720627831682,-146.71594819,0.00013222,2]
[331677333,1720627831693,-35.21405181,0.00013222,2]
[331677334,1720627831704,-800.0,0.000133,4]
[331677335,1720627831714,-2509.7868,0.00013311,2]
[331677336,1720627831723,-459.986194,0.00013316,2]
[331677337,1720627831732,-180.666707,0.00013316,2]
[331677338,1720627831741,-253.089089,0.00013316,2]
[331677339,1720627831750,-1100.0,0.000134,4]
[331677340,1720627831760,-175.595959,0.00013411,2]
[331677341,1720627831769,-175.595959,0.00013411,2]
[331677342,1720627831778,-500.0,0.00013469,2]
[331677344,1720627831788,-500.0,0.00013478,2]
[331677346,1720627831796,-459.986194,0.00013482,2]
[331677347,1720627831806,-253.089089,0.00013482,2]
[331677348,1720627831815,-500.0,0.00013486,2]
[331677349,1720627831825,-500.0,0.00013495,2]
[331677350,1720627831834,-1400.0,0.000135,4]
[331677351,1720627831842,-500.0,0.00013504,2]
[331677352,1720627831851,-500.0,0.00013513,2]
[331677353,1720627831860,-167.74348649,0.00013516,2]
[331677354,1720627831869,-500.0,0.00013522,2]
[331677355,1720627831878,-99.09000574,0.0001353,2]
[331677356,1720627831890,-400.90999426,0.0001353,2]
[331677357,1720627831898,-150.0,0.00013539,2]
[331677358,1720627831907,-500.0,0.00013539,2]
[331677359,1720627831917,-500.0,0.00013548,2]
[331677360,1720627831926,-500.0,0.00013557,2]
[331677361,1720627831936,-500.0,0.00013566,2]
[331677362,1720627831945,-351.39000574,0.00013574,2]
[331677363,1720627831965,-148.60999426,0.00013574,2]
[331677364,1720627831974,-500.0,0.00013583,2]
[331677365,1720627831983,-500.0,0.00013592,2]
[331677366,1720627831992,-200.0,0.000136,4]
[331677367,1720627832001,-500.0,0.00013601,2]
[331677368,1720627832010,-500.0,0.0001361,2]
[331677369,1720627832019,-500.0,0.00013618,2]
[331677370,1720627832029,-500.0,0.00013627,2]
[331677371,1720627832038,-459.986194,0.00013649,2]
[331677372,1720627832047,-253.089089,0.00013649,2]
[331677373,1720627832056,-488.444,0.00013682,2]
[331677374,1720627832065,-278.6,0.00013699,2]
[331677375,1720627832074,-200.0,0.000137,5]
[331677376,1720627832083,-175.595959,0.00013746,2]
[331677377,1720627832092,-175.595959,0.00013746,2]
[331677378,1720627832101,-200.0,0.000138,5]
[331677379,1720627832110,-459.986194,0.00013815,2]
[331677380,1720627832118,-253.089089,0.00013815,2]
[331677381,1720627832127,-195.59963,0.0001386,2]
[331677382,1720627832137,-4022.65247261,0.000139,2]
[331677406,1720627837580,-278.6,0.00013699,2]
[331677408,1720627837591,-219.75828287,0.000139,2]
[331677414,1720627837630,-4519.65421666,0.000139,2]
[331677416,1720627837642,-15533.63414008,0.000139,2]
[331677421,1720627837686,-535.43603324,0.000139,2]
[331677423,1720627837698,-7361.3431351,0.000139,2]
[331677424,1720627837709,-200.0,0.000139,5]
[331677425,1720627837718,-2375.0,0.00013948,2]
[331677426,1720627837728,-459.986194,0.00013981,2]
[331677427,1720627837737,-253.089089,0.00013981,2]
[331677428,1720627837746,-192.80417238,0.0001399,2]
[331677429,1720627837755,-192.80417238,0.0001399,2]
[331677430,1720627837764,-500.0,0.00013997,2]
[331677431,1720627837773,-500.0,0.00013997,2]
[331677432,1720627837782,-500.0,0.00013997,2]
[331677433,1720627837792,-269.60518932,0.00013997,2]
[331677434,1720627837802,-4250.36804782,0.00013998,2]
[331677435,1720627837813,-2033.01980657,0.00013998,2]
[331677436,1720627837824,-409.86365149,0.00013998,2]
[331677437,1720627837835,-2659.70514143,0.00013998,2]
[331677438,1720627837846,-973.89710176,0.00013998,2]
[331677439,1720627837861,-669.77910989,0.00013998,2]
[331677440,1720627837873,-1087.00829466,0.00013998,2]
[331677441,1720627837883,-552.62070963,0.00013998,2]
[331677442,1720627837903,-1384.87373505,0.00013998,2]
[331677444,1720627837913,-527.5937631,0.00013998,2]
[331677447,1720627837923,-500.0,0.00013999,2]
[331677449,1720627837933,-500.0,0.00013999,2]
[331677450,1720627837942,-450.59144192,0.00013999,2]
[331677453,1720627837953,-500.0,0.00013999,2]
[331677455,1720627837963,-500.0,0.00013999,2]
[331677456,1720627837973,-4280.58,0.00013999,2]
[331677458,1720627837983,-261.83053362,0.00013999,2]
[331677460,1720627837992,-500.0,0.00013999,2]
[331677462,1720627838002,-500.0,0.00013999,2]
[331677465,1720627838012,-500.0,0.00013999,2]
[331677466,1720627838021,-500.0,0.00013999,2]
[331677469,1720627838031,-197.0402334,0.00013999,2]
[331677471,1720627838040,-1346.46,0.00013999,2]
[331677472,1720627838050,-500.0,0.00013999,2]
[331677475,1720627838060,-434.74094275,0.00013999,2]
[331677477,1720627838069,-500.0,0.00013999,2]
[331677478,1720627838079,-500.0,0.00013999,2]
[331677481,1720627838089,-500.0,0.00013999,2]
[331677482,1720627838099,-723.15,0.00013999,2]
[331677485,1720627838108,-550.53,0.00013999,2]
[331677487,1720627838118,-513.29,0.00013999,2]
[331677489,1720627838128,-500.0,0.00013999,2]
[331677490,1720627838137,-10131.62,0.00013999,2]
[331677493,1720627838147,-500.0,0.00013999,2]
[331677495,1720627838158,-522.17572243,0.00013999,2]
[331677497,1720627838168,-561.0,0.00014,2]
[331677499,1720627838177,-12708.87008651,0.00014,2]
[331677614,1720627839647,-274.7021428,0.00013999,2]
[331677616,1720627839885,-3827.5178572,0.00013999,2]
[331677617,1720627839895,-37547.39952455,0.00014,2]
[331677618,1720627839907,-98246.85289365,0.00014,2]
[331677619,1720627839935,-2517.83629671,0.00014,2]
[331677620,1720627839947,-55308.92641186,0.00014,2]
[331677621,1720627840019,-2495.465992,0.00014,2]
[331677622,1720627840073,-3291.39065368,0.00014,2]
[331677623,1720627840084,-2430.53542353,0.00014,2]
[331677624,1720627840096,-891.51412651,0.00014,2]
[331677625,1720627840127,-6823.21741814,0.00014,2]
[331677627,1720627840136,-778869.55191552,0.00014,2]
[331677629,1720627840146,-2548635.28616794,0.00014,2]
[331677631,1720627840155,-2253731.66842969,0.00014,2]
[331677633,1720627840167,-392.85540526,0.00014,2]
[331677635,1720627840178,-1176.69046004,0.00014,2]
[331677686,1720627842613,-41117.5554917,0.00014,2]
[331677697,1720627844382,-50214.1440525,0.00014,2]
[331677698,1720627845677,-500.0,0.00013999,2]
[331677699,1720627845688,-2627.80000001,0.00014,2]
[331677700,1720627845700,-1755.59834437,0.00014,2]
[331677701,1720627845734,-1739.12739,0.00014,2]
[331677702,1720627845787,-3007.43990326,0.00014,2]
[331677703,1720627845801,-560.52287682,0.00014,2]
[331677704,1720627845842,-2123.07352372,0.00014,2]
[331677705,1720627845855,-1920.73870148,0.00014,2]
[331677706,1720627845868,-612.67,0.00014,2]
[331677707,1720627845881,-359.36917323,0.00014,2]
[331677708,1720627845902,-290.1974552,0.00014,2]
[331677709,1720627845914,-1572.98307195,0.00014,2]
[331677710,1720627845927,-2836.5862804,0.00014,2]
[331677711,1720627845940,-5809.804,0.00014,2]
[331677712,1720627845952,-1041.17810398,0.00014,2]
[331677713,1720627845974,-9789.77510328,0.00014,2]
[331677718,1720627890734,150.0,0.00026114,120]
[331677719,1720628071418,150.0,0.00025741,120]
[331677720,1720628202852,525.52,0.00011372,2]
[331677721,1720628213131,-789.0,0.00018,30]
[331677732,1720628490924,150.0,0.0002142,120]
[331677739,1720628670708,150.0,0.00025458,120]
[331677748,1720628850211,499.24,0.00011017,2]
[331677749,1720628893519,51048.04500389,0.00011017,2]
[331677752,1720628913311,150.0,0.00024601,120]
[331677753,1720628919432,300.0,0.00012001,2]
[331677757,1720629003176,1999.93190739,0.00011199,2]
[331677764,1720629031772,-1070.61,0.00012907,2]
[331677765,1720629031782,-250.0,0.00012932,2]
[331677766,1720629031792,-232.68,0.00012944,2]
[331677767,1720629031802,-250.0,0.00013079,2]
[331677768,1720629031812,-261.74042629,0.00013128,2]
[331677769,1720629031830,-433.81938179,0.00013128,2]
[331677770,1720629031841,-380.03886704,0.00013128,2]
[331677771,1720629031943,-555.44425914,0.00013128,2]
[331677772,1720629031952,-479.72996804,0.00013128,2]
[331677773,1720629032056,-1604.50634811,0.00013128,2]
[331677774,1720629032069,-167.32,0.00013202,2]
[331677775,1720629032079,-1000.0,0.00013227,2]
[331677776,1720629032089,-151.0,0.00013272,2]
[331677777,1720629032099,-499.24,0.00013281,2]
[331677778,1720629032110,-547.0,0.00013448,2]
[331677779,1720629032120,-300.0,0.00013471,2]
[331677780,1720629032131,-17347.55997951,0.000137,2]
[331677781,1720629032140,-625.34959091,0.00013849,2]
[331677782,1720629032152,-391.19926,0.0001386,2]
[331677783,1720629032163,-155.0,0.00013889,2]
[331677784,1720629032174,-572.62532796,0.00013899,2]
[331677786,1720629032183,-1422.28863889,0.00013899,2]
[331677788,1720629032193,-150.0,0.00013899,2]
[331677790,1720629032203,-572.62532791,0.00013899,2]
[331677792,1720629032212,-1422.28863883,0.00013899,2]
[331677794,1720629032221,-572.62532791,0.00013899,2]
[331677796,1720629032230,-1422.28863883,0.00013899,2]
[331677798,1720629032240,-572.62532791,0.00013899,2]
[331677799,1720629032249,-1422.28863883,0.00013899,2]
[331677800,1720629032258,-572.62532791,0.00013899,2]
[331677801,1720629032267,-1422.28863883,0.00013899,2]
[331677802,1720629032277,-572.62532791,0.000139,2]
[331677803,1720629032286,-1422.28863883,0.000139,2]
[331677804,1720629032295,-572.62532791,0.000139,2]
[331677805,1720629032304,-1422.28863883,0.000139,2]
[331677806,1720629032314,-739.5697,0.000139,2]
[331677807,1720629032323,-572.62532791,0.000139,2]
[331677808,1720629032333,-1422.28863883,0.000139,2]
[331677809,1720629032344,-572.62532791,0.000139,2]
[331677810,1720629032354,-1422.28863883,0.000139,2]
[331677811,1720629032366,-5347.45374704,0.000139,2]
[331677815,1720629033270,-797.37400748,0.000139,2]
[331677816,1720629033282,-819.28,0.000139,2]
[331677824,1720629037778,-4826.36154548,0.000139,2]
[331677825,1720629037788,-163.14831748,0.000139,2]
[331677826,1720629037839,-171.42588252,0.000139,2]
[331677827,1720629037849,-572.62532791,0.000139,2]
[331677828,1720629037860,-1422.28863883,0.000139,2]
[331677829,1720629037869,-523.50986278,0.000139,2]
[331677830,1720629037879,-6595.38371649,0.000139,2]
[331677831,1720629037889,-199.30824592,0.000139,2]
[331677832,1720629037898,-155.11912756,0.00013989,2]
[331677833,1720629037908,-269.79567347,0.00013989,2]
[331677834,1720629037917,-500.0,0.00013999,2]
[331677835,1720629037927,-500.0,0.00013999,2]
[331677836,1720629037936,-500.0,0.00013999,2]
[331677837,1720629037946,-500.0,0.00013999,2]
[331677838,1720629037956,-500.0,0.00013999,2]
[331677839,1720629037965,-500.0,0.00013999,2]
[331677840,1720629037975,-500.0,0.00013999,2]
[331677841,1720629037985,-500.0,0.00013999,2]
[331677842,1720629037995,-500.0,0.00013999,2]
[331677843,1720629038004,-510.14,0.00013999,2]
[331677844,1720629038014,-500.0,0.00013999,2]
[331677845,1720629038024,-500.0,0.00013999,2]
[331677846,1720629038034,-500.0,0.00013999,2]
[331677847,1720629038044,-500.0,0.00013999,2]
[331677848,1720629038055,-500.0,0.00013999,2]
[331677849,1720629038065,-500.0,0.00013999,2]
[331677850,1720629038075,-500.0,0.00013999,2]
[331677851,1720629038086,-500.0,0.00013999,2]
[331677852,1720629038096,-500.0,0.00013999,2]
[331677853,1720629038106,-500.0,0.00013999,2]
[331677854,1720629038116,-500.0,0.00013999,2]
[331677855,1720629038125,-500.0,0.00013999,2]
[331677856,1720629038135,-578.65,0.00013999,2]
[331677857,1720629038145,-500.0,0.00013999,2]
[331677858,1720629038154,-500.0,0.00013999,2]
[331677859,1720629038163,-500.0,0.00013999,2]
[331677860,1720629038174,-500.0,0.00013999,2]
[331677861,1720629038184,-500.0,0.00013999,2]
[331677862,1720629038193,-619.50841167,0.00013999,2]
[331677863,1720629038203,-500.0,0.00013999,2]
[331677864,1720629038212,-500.0,0.00013999,2]
[331677865,1720629038222,-500.0,0.00013999,2]
[331677866,1720629038231,-500.0,0.00013999,2]
[331677867,1720629038241,-500.0,0.00013999,2]
[331677868,1720629038250,-500.0,0.00013999,2]
[331677869,1720629038260,-500.0,0.00013999,2]
[331677870,1720629038270,-627.98,0.00013999,2]
[331677871,1720629038279,-500.0,0.00013999,2]
[331677872,1720629038289,-500.0,0.00013999,2]
[331677873,1720629038299,-500.0,0.00013999,2]
[331677874,1720629038309,-500.0,0.00013999,2]
[331677876,1720629038319,-500.0,0.00013999,2]
[331677877,1720629038330,-514.45,0.00013999,2]
[331677878,1720629038340,-500.0,0.00013999,2]
[331677879,1720629038349,-500.0,0.00013999,2]
[331677880,1720629038359,-500.0,0.00013999,2]
[331677881,1720629038369,-241.66005132,0.00013999,2]
[331677883,1720629038380,-500.0,0.00013999,2]
[331677885,1720629038392,-500.0,0.00013999,2]
[331677887,1720629038401,-540.25,0.00013999,2]
[331677890,1720629038412,-500.0,0.00013999,2]
[331677891,1720629038421,-500.0,0.00013999,2]
[331677893,1720629038431,-500.0,0.00013999,2]
[331677896,1720629038442,-163.67245269,0.00013999,2]
[331677898,1720629038452,-500.0,0.00013999,2]
[331677899,1720629038462,-500.0,0.00013999,2]
[331677902,1720629038473,-500.0,0.00013999,2]
[331677904,1720629038482,-521.3,0.00013999,2]
[331677905,1720629038492,-500.0,0.00013999,2]
[331677907,1720629038502,-500.0,0.00013999,2]
[331677910,1720629038513,-495.1160523,0.00013999,2]
[331677912,1720629038523,-500.0,0.00013999,2]
[331677914,1720629038533,-342.45682595,0.00013999,2]
[331677915,1720629038542,-180.2184476,0.00013999,2]
[331677917,1720629038553,-500.0,0.00013999,2]
[331677919,1720629038562,-500.0,0.00013999,2]
[331677921,1720629038572,-500.0,0.00013999,2]
[331677923,1720629038584,-500.0,0.00013999,2]
[331677925,1720629038594,-500.0,0.00013999,2]
[331677928,1720629038604,-398.0376981,0.00013999,2]
[331677930,1720629038614,-500.0,0.00013999,2]
[331677932,1720629038624,-500.0,0.00013999,2]
[331677934,1720629038634,-500.0,0.00013999,2]
[331677936,1720629038644,-500.0,0.00013999,2]
[331677937,1720629038653,-568.22,0.00013999,2]
[331677940,1720629038663,-1290.36,0.00013999,2]
[331677942,1720629038673,-500.0,0.00013999,2]
[331677944,1720629038683,-500.0,0.00013999,2]
[331677946,1720629038694,-500.0,0.00013999,2]
[331677947,1720629038704,-500.0,0.00013999,2]
[331677950,1720629038714,-500.0,0.00013999,2]
[331677952,1720629038726,-500.0,0.00013999,2]
[331677954,1720629038736,-238.52358489,0.00013999,2]
[331677956,1720629038750,-261.47641511,0.00013999,2]
[331677958,1720629038760,-506.29,0.00013999,2]
[331677960,1720629038770,-500.0,0.00013999,2]
[331677962,1720629038780,-500.0,0.00013999,2]
[331677964,1720629038789,-500.0,0.00013999,2]
[331677966,1720629038802,-233.57776976,0.00013999,2]
[331677970,1720629038826,-266.42223024,0.00013999,2]
[331677971,1720629038837,-309.53415616,0.00013999,2]
[331678067,1720629039772,-190.46584384,0.00013999,2]
[331678069,1720629039783,-540.12,0.00013999,2]
[331678071,1720629039793,-261.98970952,0.00013999,2]
[331678073,1720629039806,-238.01029048,0.00013999,2]
[331678075,1720629039817,-522.85,0.00013999,2]
[331678077,1720629039827,-500.0,0.00013999,2]
[331678079,1720629039838,-500.0,0.00013999,2]
[331678081,1720629039848,-562.96,0.00013999,2]
[331678083,1720629039858,-500.0,0.00013999,2]
[331678085,1720629039868,-500.0,0.00013999,2]
[331678087,1720629039878,-500.0,0.00013999,2]
[331678090,1720629039888,-555.21,0.00013999,2]
[331678091,1720629039898,-564.24970952,0.00013999,2]
[331678097,1720629039939,-62.51029048,0.00013999,2]
[331678099,1720629039950,-500.0,0.00013999,2]
[331678101,1720629039959,-500.0,0.00013999,2]
[331678103,1720629039969,-500.0,0.00013999,2]
[331678105,1720629039978,-344.16501257,0.00013999,2]
[331678107,1720629039987,-500.0,0.00013999,2]
[331678109,1720629039997,-500.0,0.00013999,2]
[331678111,1720629040007,-500.0,0.00013999,2]
[331678113,1720629040016,-500.0,0.00013999,2]
[331678115,1720629040026,-500.0,0.00013999,2]
[331678117,1720629040036,-500.0,0.00013999,2]
[331678119,1720629040045,-161.42734012,0.00013999,2]
[331678121,1720629040055,-500.0,0.00013999,2]
[331678123,1720629040064,-500.0,0.00013999,2]
[331678125,1720629040074,-500.0,0.00013999,2]
[331678127,1720629040085,-500.0,0.00013999,2]
[331678129,1720629040095,-500.0,0.00013999,2]
[331678131,1720629040105,-500.0,0.00013999,2]
[331678133,1720629040114,-500.0,0.00013999,2]
[331678135,1720629040124,-563.72,0.00013999,2]
[331678137,1720629040133,-500.0,0.00013999,2]
[331678138,1720629040142,-500.0,0.00013999,2]
[331678140,1720629040151,-500.0,0.00013999,2]
[331678142,1720629040161,-500.0,0.00013999,2]
[331678145,1720629040170,-500.0,0.00013999,2]
[331678147,1720629040180,-500.0,0.00013999,2]
[331678149,1720629040189,-500.0,0.00013999,2]
[331678150,1720629040199,-500.0,0.00013999,2]
[331678152,1720629040208,-3931.3,0.00013999,2]
[331678154,1720629040217,-594.08019241,0.00013999,2]
[331678156,1720629040226,-500.0,0.00013999,2]
[331678158,1720629040236,-503.21,0.00013999,2]
[331678160,1720629040245,-500.0,0.00013999,2]
[331678162,1720629040255,-500.0,0.00013999,2]
[331678164,1720629040264,-500.0,0.00013999,2]
[331678167,1720629040274,-500.0,0.00013999,2]
[331678169,1720629040283,-500.0,0.00013999,2]
[331678170,1720629040293,-500.0,0.00013999,2]
[331678172,1720629040303,-500.0,0.00013999,2]
[331678174,1720629040313,-500.0,0.00013999,2]
[331678176,1720629040322,-500.0,0.00013999,2]
[331678178,1720629040332,-500.0,0.00013999,2]
[331678181,1720629040342,-500.0,0.00013999,2]
[331678183,1720629040353,-500.0,0.00013999,2]
[331678184,1720629040364,-500.0,0.00013999,2]
[331678185,1720629040375,-500.0,0.00013999,2]
[331678186,1720629040385,-500.0,0.00013999,2]
[331678187,1720629040395,-562.51,0.00013999,2]
[331678188,1720629040404,-500.0,0.00013999,2]
[331678189,1720629040415,-548.64,0.00013999,2]
[331678190,1720629040424,-500.0,0.00013999,2]
[331678191,1720629040434,-500.0,0.00013999,2]
[331678192,1720629040443,-527.59,0.00013999,2]
[331678193,1720629040452,-500.0,0.00013999,2]
[331678195,1720629040462,-500.0,0.00013999,2]
[331678197,1720629040471,-151.89752682,0.00013999,2]
[331678199,1720629040481,-500.0,0.00013999,2]
[331678201,1720629040490,-9709.47,0.00013999,2]
[331678203,1720629040500,-543.34,0.00013999,2]
[331678205,1720629040509,-500.0,0.00013999,2]
[331678207,1720629040518,-500.0,0.00013999,2]
[331678209,1720629040528,-500.0,0.00013999,2]
[331678211,1720629040537,-501.9,0.00013999,2]
[331678213,1720629040547,-196200.61831552,0.00014,2]
[331678215,1720629040559,-2647.16700464,0.00014,2]
[331678218,1720629040580,-500.0,0.00013999,2]
[331678220,1720629040590,-18063.70074268,0.00014,2]
[331678222,1720629040599,-39781.48909618,0.00014,2]
[331678224,1720629040611,-11520.5981007,0.00014,2]
[331678227,1720629040622,-664.0540175,0.00014,2]
[331678229,1720629040633,-11234.33001627,0.00014,2]
[331678231,1720629040645,-21590.6954927,0.00014,2]
[331678233,1720629040656,-345.91069995,0.00014,2]
[331678236,1720629040666,-850.22244666,0.00014,2]
[331678238,1720629040677,-1738.0809186,0.00014,2]
[331678453,1720629042838,-353.52219708,0.00013899,2]
[331678454,1720629042848,-500.0,0.00013999,2]
[331678455,1720629042857,-500.0,0.00013999,2]
[331678456,1720629042867,-500.0,0.00013999,2]
[331678457,1720629042876,-4791.03304655,0.00014,2]
[331678458,1720629042888,-494.33920324,0.00014,2]
[331678459,1720629042907,-444.24779552,0.00014,2]
[331678500,1720629044535,-40599.11855816,0.00014,2]
[331678501,1720629044548,-2491.29718569,0.00014,2]
[331678502,1720629044560,-26875.5662015,0.00014,2]
[331678503,1720629044571,-311.7686698,0.00014,2]
[331678504,1720629044582,-1013.4946033,0.00014,2]
[331678505,1720629044616,-328.39001,0.00014,2]
[331678506,1720629044627,-775.37634587,0.00014,2]
[331678507,1720629044724,-1625.7938459,0.00014,2]